fUSD/lending_fUSD_20260217
["ID","MTS","AMOUNT","RATE_DAILY","PERIOD"]
[405816896,1771335033125,-647.75061356,6.783e-05,2]
[405816897,1771335033136,-647.75061356,6.783e-05,2]
[405816898,1771335033146,-647.75061356,6.783e-05,2]
[405816899,1771335033155,-647.75061356,6.783e-05,2]
[405816900,1771335033165,-107958.36841616,6.784e-05,2]
[405816901,1771335033177,-953.31026791,6.784e-05,2]
[405816902,1771335033189,-310.31,6.784e-05,2]
[405816910,1771335038668,-1317.5659846,6.784e-05,2]
[405816911,1771335038683,-578.6699997,6.784e-05,2]
[405816912,1771335038695,-308.5174995,6.784e-05,2]
[405816913,1771335038706,-77408.899055,6.784e-05,2]
[405816914,1771335038722,-903.93718342,6.784e-05,2]
[405816915,1771335038734,-3171360.20773585,6.784e-05,2]
[405816916,1771335038743,-753862.7565836,6.81e-05,2]
[405816917,1771335038753,-11654.4205116,6.81e-05,2]
[405816918,1771335038762,-336.20053682,6.81e-05,2]
[405816919,1771335038772,-10040.43634857,6.81e-05,2]
[405816920,1771335038781,-250.0,6.849e-05,2]
[405816921,1771335038791,-27228.0,6.849e-05,2]
[405816922,1771335038801,-150.0,6.857e-05,2]
[405816923,1771335038811,-250.0,6.869e-05,2]
[405816924,1771335038820,-2374.6,6.88e-05,2]
[405816925,1771335038830,-283.60602185,6.883e-05,2]
[405816926,1771335038839,-12009.64721298,6.884e-05,2]
[405816927,1771335038849,-177.29,6.9e-05,2]
[405816928,1771335038859,-1000.0,6.983e-05,2]
[405816929,1771335038868,-170.39,7.1e-05,2]
[405816930,1771335038878,-1680.0,7.461e-05,2]
[405816931,1771335038888,-255.0,7.461e-05,2]
[405816932,1771335038897,-272.14970002,7.468e-05,2]
[405816933,1771335038906,-891.0,7.501e-05,2]
[405816934,1771335038916,-250.0,7.533e-05,2]
[405816935,1771335038926,-185.0,7.64e-05,2]
[405816936,1771335038935,-1029.0,7.884e-05,2]
[405816937,1771335038945,-392.58581832,7.888e-05,2]
[405816938,1771335038955,-1793.0,7.899e-05,2]
[405816939,1771335038964,-3358.663823,7.945e-05,2]
[405816940,1771335038973,-1852.42,7.961e-05,2]
[405816941,1771335038982,-23643.55920929,8e-05,2]
[405816942,1771335038991,-500.0,8e-05,2]
[405816943,1771335039001,-168209.5176064,8.146e-05,2]
[405816944,1771335039011,-2600.4527151,8.149e-05,2]
[405816945,1771335039020,-545.792757,8.178e-05,2]
[405816946,1771335039030,-2351.0,8.208e-05,2]
[405816947,1771335039040,-433.0,8.208e-05,2]
[405816948,1771335039049,-500.0,8.219e-05,2]
[405816949,1771335039059,-544.42606313,8.219e-05,2]
[405816950,1771335039069,-436.9941473,8.219e-05,2]
[405816951,1771335039078,-150.0,8.219e-05,2]
[405816952,1771335039087,-150.0,8.219e-05,2]
[405816953,1771335039097,-216.144076,8.219e-05,2]
[405816954,1771335039106,-282.288152,8.219e-05,2]
[405816955,1771335039115,-348.432228,8.219e-05,2]
[405816956,1771335039125,-414.576305,8.219e-05,2]
[405816957,1771335039134,-480.720381,8.219e-05,2]
[405816958,1771335039143,-546.864457,8.219e-05,2]
[405816959,1771335039153,-613.008534,8.219e-05,2]
[405816960,1771335039162,-679.15261,8.219e-05,2]
[405816961,1771335039172,-745.296686,8.219e-05,2]
[405816962,1771335039181,-150.0,8.219e-05,2]
[405816963,1771335039191,-234.261674,8.219e-05,2]
[405816964,1771335039200,-318.523349,8.219e-05,2]
[405816965,1771335039209,-402.785023,8.219e-05,2]
[405816966,1771335039218,-487.046698,8.219e-05,2]
[405816967,1771335039227,-571.308372,8.219e-05,2]
[405816968,1771335039236,-655.570047,8.219e-05,2]
[405816969,1771335039245,-739.831721,8.219e-05,2]
[405816970,1771335039254,-824.093396,8.219e-05,2]
[405816971,1771335039264,-908.35507,8.219e-05,2]
[405816972,1771335039273,-359.232122,8.219e-05,2]
[405816973,1771335039283,-1249.146837,8.219e-05,2]
[405816974,1771335039292,-1561.433547,8.219e-05,2]
[405816975,1771335039302,-500.0,8.219e-05,2]
[405816976,1771335039311,-150.0,8.274e-05,2]
[405816977,1771335039321,-150.0,8.329e-05,2]
[405816978,1771335039330,-250.53819001,8.383e-05,2]
[405816979,1771335039340,-37532.616602,8.444e-05,2]
[405816980,1771335039349,-580.2394307,8.448e-05,2]
[405816981,1771335039359,-346.58,8.45e-05,2]
[405816982,1771335039369,-9999.99,8.45e-05,2]
[405816983,1771335039378,-150.99,8.45e-05,2]
[405816984,1771335039388,-9999.99,8.45e-05,2]
[405816985,1771335039398,-14638.92,8.45e-05,2]
[405816986,1771335039407,-9999.99,8.45e-05,2]
[405816987,1771335039416,-150.99,8.45e-05,2]
[405816988,1771335039426,-999.99,8.45e-05,2]
[405816989,1771335039435,-9999.99,8.45e-05,2]
[405816990,1771335039444,-9999.99,8.45e-05,2]
[405816991,1771335039453,-299.99,8.45e-05,2]
[405816992,1771335039463,-420.48,8.45e-05,2]
[405816993,1771335039472,-500.0,8.493e-05,2]
[405816994,1771335039482,-6614.719192,8.632e-05,2]
[405816995,1771335039491,-170.3,8.67e-05,2]
[405816996,1771335039504,-420.48,8.724e-05,2]
[405816997,1771335039514,-500.0,8.767e-05,2]
[405816998,1771335039523,-1048.0,8.895e-05,2]
[405816999,1771335039533,-265.56589159,8.896e-05,2]
[405817000,1771335039544,-250.0,8.963e-05,2]
[405817001,1771335039554,-420.48,8.998e-05,2]
[405817002,1771335039564,-3292.0,9.028e-05,2]
[405817003,1771335039575,-736.0,9.028e-05,2]
[405817004,1771335039584,-500.0,9.041e-05,2]
[405817005,1771335039593,-495.0,9.231e-05,2]
[405817006,1771335039602,-420.48,9.272e-05,2]
[405817007,1771335039611,-500.0,9.315e-05,2]
[405817008,1771335039620,-509.16900966,9.346e-05,2]
[405817009,1771335039629,-420.49490725,9.546e-05,2]
[405817010,1771335039639,-500.0,9.589e-05,2]
[405817011,1771335039648,-5595.604293,9.633e-05,2]
[405817012,1771335039657,-500.0,9.726e-05,2]
[405817013,1771335039666,-632.05796525,9.728e-05,2]
[405817014,1771335039675,-170.3,9.753e-05,2]
[405817015,1771335039684,-500.0,9.781e-05,2]
[405817016,1771335039693,-1528.0,9.797e-05,2]
[405817017,1771335039702,-288.0,9.816e-05,2]
[405817018,1771335039712,-1873.720256,9.832e-05,2]
[405817019,1771335039721,-500.0,9.836e-05,2]
[405817020,1771335039731,-1112.0,9.836e-05,2]
[405817021,1771335039740,-1773.0,9.855e-05,2]
[405817022,1771335039749,-500.0,9.863e-05,2]
[405817023,1771335039759,-500.0,9.89e-05,2]
[405817024,1771335039767,-247.92,9.896e-05,2]
[405817025,1771335039777,-342.0,9.926e-05,2]
[405817026,1771335039786,-1239.0,9.93e-05,2]
[405817027,1771335039796,-4609.0,9.931e-05,2]
[405817028,1771335039808,-332.80031656,9.945e-05,2]
[405817029,1771335039817,-493.0,9.946e-05,2]
[405817030,1771335039826,-318.0,9.965e-05,2]
[405817031,1771335039841,-331.98047672,9.971e-05,2]
[405817032,1771335039850,-534.0,9.985e-05,2]
[405817033,1771335039859,-194.04699193,0.0001,2]
[405817034,1771335039868,-194.04699193,0.0001,2]
[405817035,1771335039877,-194.04699193,0.0001,2]
[405817036,1771335039886,-200.0,0.0001,2]
[405817037,1771335039896,-500.0,0.0001,2]
[405817038,1771335039905,-500.0,0.0001,2]
[405817039,1771335039915,-500.0,0.0001,2]
[405817040,1771335039925,-500.0,0.0001,2]
[405817041,1771335039935,-500.0,0.0001,2]
[405817042,1771335039944,-500.0,0.0001,2]
[405817043,1771335039954,-500.0,0.0001,2]
[405817044,1771335039967,-500.0,0.0001,2]
[405817045,1771335039977,-500.0,0.0001,2]
[405817046,1771335039986,-500.0,0.0001,2]
[405817047,1771335039996,-500.0,0.0001,2]
[405817048,1771335040005,-500.0,0.0001,2]
[405817049,1771335040015,-151.0,0.0001,2]
[405817050,1771335040024,-500.0,0.0001,2]
[405817051,1771335040033,-151.0,0.0001,2]
[405817052,1771335040043,-151.0,0.0001,2]
[405817053,1771335040052,-151.0,0.0001,2]
[405817054,1771335040062,-500.0,0.0001,2]
[405817055,1771335040071,-151.0,0.0001,2]
[405817056,1771335040080,-151.0,0.0001,2]
[405817057,1771335040090,-500.0,0.0001,2]
[405817058,1771335040099,-151.0,0.0001,2]
[405817059,1771335040108,-151.0,0.0001,2]
[405817060,1771335040119,-500.0,0.0001,2]
[405817061,1771335040128,-151.0,0.0001,2]
[405817062,1771335040137,-500.0,0.0001,2]
[405817063,1771335040147,-151.0,0.0001,2]
[405817064,1771335040156,-500.0,0.0001,2]
[405817065,1771335040170,-151.0,0.0001,2]
[405817066,1771335040179,-500.0,0.0001,2]
[405817068,1771335040188,-151.0,0.0001,2]
[405817069,1771335040197,-151.0,0.0001,2]
[405817070,1771335040207,-500.0,0.0001,2]
[405817071,1771335040216,-151.0,0.0001,2]
[405817072,1771335040226,-500.0,0.0001,2]
[405817073,1771335040235,-151.0,0.0001,2]
[405817074,1771335040244,-151.0,0.0001,2]
[405817075,1771335040254,-151.0,0.0001,2]
[405817076,1771335040263,-151.0,0.0001,2]
[405817077,1771335040274,-151.0,0.0001,2]
[405817078,1771335040283,-151.0,0.0001,2]
[405817079,1771335040293,-151.0,0.0001,2]
[405817080,1771335040303,-151.0,0.0001,2]
[405817081,1771335040313,-151.0,0.0001,2]
[405817082,1771335040322,-151.0,0.0001,2]
[405817083,1771335040332,-500.0,0.0001,2]
[405817084,1771335040342,-151.0,0.0001,2]
[405817085,1771335040352,-500.0,0.0001,2]
[405817086,1771335040366,-151.0,0.0001,2]
[405817087,1771335040376,-151.0,0.0001,2]
[405817088,1771335040386,-151.0,0.0001,2]
[405817089,1771335040396,-151.0,0.0001,2]
[405817090,1771335040406,-151.0,0.0001,2]
[405817091,1771335040416,-151.0,0.0001,2]
[405817092,1771335040425,-875.94052204,0.0001,2]
[405817093,1771335040435,-325.22995652,0.0001,2]
[405817094,1771335040445,-200.0,0.0001,2]
[405817095,1771335040455,-998.6278394,0.0001,2]
[405817096,1771335040465,-998.6278394,0.0001,2]
[405817097,1771335040474,-20355.78997856,0.00010296,2]
[405817098,1771335040484,-200.0,0.00010548,2]
[405817099,1771335040496,-503.55960548,0.00010548,2]
[405817100,1771335040508,-313.19,0.00010616,2]
[405817101,1771335040517,-500.0,0.00010779,2]
[405817102,1771335040527,-500.0,0.00010779,2]
[405817103,1771335040538,-368.72151799,0.00010779,2]
[405817104,1771335040547,-500.0,0.00010779,2]
[405817105,1771335040560,-500.0,0.00010779,2]
[405817106,1771335040570,-500.0,0.00010779,2]
[405817107,1771335040580,-500.0,0.00010779,2]
[405817108,1771335040589,-7937.663031,0.0001079,2]
[405817109,1771335040598,-170.3,0.00010837,2]
[405817110,1771335040608,-6453.0,0.00010924,2]
[405817111,1771335040617,-500.0,0.00010959,2]
[405817112,1771335040627,-226.88409827,0.00010959,2]
[405817113,1771335040636,-6034.81891893,0.00011,2]
[405817114,1771335040646,-1800.0,0.00011,2]
[405817115,1771335040656,-200.0,0.00011096,2]
[405817116,1771335040665,-11526.71888634,0.00011099,2]
[405817117,1771335040674,-11526.71888631,0.00011099,2]
[405817118,1771335040684,-11526.71888631,0.00011099,2]
[405817119,1771335040693,-11526.71888631,0.00011099,2]
[405817120,1771335040703,-11526.71888631,0.00011099,2]
[405817121,1771335040713,-3535.77699272,0.00011099,2]
[405817122,1771335040723,-3535.77699268,0.00011099,2]
[405817123,1771335040732,-3535.77699268,0.00011099,2]
[405817124,1771335040742,-3535.77699268,0.00011099,2]
[405817125,1771335040755,-750.0,0.00011171,2]
[405817126,1771335040764,-9150.74,0.00011201,2]
[405817128,1771335040774,-506.61106656,0.00011327,2]
[405817129,1771335040783,-162.38741444,0.00011327,2]
[405817130,1771335040793,-500.0,0.00011327,2]
[405817131,1771335040802,-1008.54082512,0.00011327,2]
[405817132,1771335040812,-1000.0,0.00011327,2]
[405817133,1771335040822,-1000.0,0.00011327,2]
[405817135,1771335040831,-3535.77699268,0.0001137,2]
[405817136,1771335040841,-300.0,0.000115,2]
[405817137,1771335040851,-20780.3,0.00011535,2]
[405817138,1771335040862,-500.0,0.00011601,2]
[405817139,1771335040873,-200.0,0.00011644,2]
[405817140,1771335040882,-500.0,0.00011656,2]
[405817141,1771335040891,-500.0,0.00011711,2]
[405817142,1771335040901,-500.0,0.00011765,2]
[405817143,1771335040911,-329.28296803,0.0001182,2]
[405817144,1771335040921,-1500.0,0.00011875,2]
[405817145,1771335040931,-1502.39964348,0.00011875,2]
[405817146,1771335040940,-11526.71888631,0.00011894,2]
[405817147,1771335040950,-170.3,0.00011921,2]
[405817148,1771335040959,-1964.0,0.00012,3]
[405817149,1771335040969,-9035.0,0.00012017,2]
[405817150,1771335040978,-6714.725152,0.00012041,2]
[405817151,1771335040987,-200.0,0.00012192,2]
[405817152,1771335040997,-875.94052203,0.00012305,2]
[405817153,1771335041006,-336.2005368,0.00012305,2]
[405817154,1771335041016,-10040.43634857,0.00012305,2]
[405817155,1771335041025,-2000.0,0.00012423,2]
[405817156,1771335041034,-3535.77699268,0.00012525,2]
[405817157,1771335041043,-201.41552809,0.0001274,2]
[405817158,1771335041053,-70181.97252511,0.000129,2]
[405817159,1771335041062,-11526.71888631,0.00012931,2]
[405817160,1771335041072,-2500.0,0.00012971,2]
[405817161,1771335041082,-791.09059454,0.00013,2]
[405817162,1771335041092,-557.0,0.00013,2]
[405817163,1771335041101,-170.3,0.00013004,2]
[405817164,1771335041111,-1561.433547,0.0001311,2]
[405817165,1771335041120,-9136.0,0.00013218,2]
[405817166,1771335041140,-743.66,0.00013666,2]
[405817167,1771335041151,-525.33,0.00013666,2]
[405817168,1771335041160,-3535.77699268,0.0001368,2]
[405817169,1771335041170,-500.0,0.00013698,2]
[405817170,1771335041180,-500.0,0.00013698,2]
[405817171,1771335041189,-536.56841648,0.00013698,2]
[405817172,1771335041199,-500.0,0.00013698,2]
[405817173,1771335041209,-500.0,0.00013698,2]
[405817174,1771335041218,-500.0,0.00013698,2]
[405817175,1771335041228,-500.0,0.00013698,2]
[405817176,1771335041238,-156.33002301,0.00013698,2]
[405817177,1771335041247,-500.0,0.00013698,2]
[405817178,1771335041259,-400.27334963,0.00013698,2]
[405817179,1771335041268,-504.93,0.00013698,2]
[405817180,1771335041278,-504.93,0.00013698,2]
[405817181,1771335041288,-504.93,0.00013698,2]
[405817182,1771335041298,-504.93,0.00013698,2]
[405817183,1771335041308,-504.93,0.00013698,2]
[405817184,1771335041318,-504.93,0.00013698,2]
[405817185,1771335041328,-504.93,0.00013698,2]
[405817186,1771335041337,-504.93,0.00013698,2]
[405817187,1771335041347,-504.93,0.00013698,2]
[405817188,1771335041356,-504.93,0.00013698,2]
[405817189,1771335041366,-504.93,0.00013698,2]
[405817190,1771335041377,-504.93,0.00013698,2]
[405817191,1771335041387,-504.93,0.00013698,2]
[405817192,1771335041397,-504.93,0.00013698,2]
[405817193,1771335041406,-500.0,0.00013698,2]
[405817194,1771335041416,-500.0,0.00013698,2]
[405817195,1771335041426,-500.0,0.00013698,2]
[405817196,1771335041436,-500.0,0.00013698,2]
[405817197,1771335041445,-500.0,0.00013698,2]
[405817198,1771335041455,-500.0,0.00013698,2]
[405817199,1771335041466,-500.0,0.00013698,2]
[405817200,1771335041475,-500.0,0.00013698,2]
[405817201,1771335041485,-500.0,0.00013698,2]
[405817202,1771335041496,-500.0,0.00013698,2]
[405817203,1771335041508,-500.0,0.00013698,2]
[405817204,1771335041518,-500.0,0.00013698,2]
[405817205,1771335041527,-500.0,0.00013698,2]
[405817206,1771335041538,-500.0,0.00013698,2]
[405817207,1771335041548,-500.0,0.00013698,2]
[405817208,1771335041558,-500.0,0.00013698,2]
[405817209,1771335041567,-500.0,0.00013698,2]
[405817210,1771335041579,-500.0,0.00013698,2]
[405817211,1771335041588,-500.0,0.00013698,2]
[405817212,1771335041598,-500.0,0.00013698,2]
[405817213,1771335041608,-500.0,0.00013698,2]
[405817214,1771335041617,-500.0,0.00013698,2]
[405817215,1771335041627,-500.0,0.00013698,2]
[405817216,1771335041636,-500.0,0.00013698,2]
[405817217,1771335041646,-500.0,0.00013698,2]
[405817218,1771335041656,-500.0,0.00013698,2]
[405817219,1771335041666,-500.0,0.00013698,2]
[405817220,1771335041676,-500.0,0.00013698,2]
[405817221,1771335041686,-500.0,0.00013698,2]
[405817222,1771335041696,-349.69131006,0.00013698,2]
[405817223,1771335041706,-1147.19,0.00013698,2]
[405817224,1771335041715,-1147.19,0.00013698,2]
[405817225,1771335041725,-1147.19,0.00013698,2]
[405817226,1771335041735,-1147.19,0.00013698,2]
[405817227,1771335041744,-1147.19,0.00013698,2]
[405817228,1771335041754,-1147.19,0.00013698,2]
[405817229,1771335041764,-1147.19,0.00013698,2]
[405817230,1771335041774,-1147.19,0.00013698,2]
[405817231,1771335041784,-1147.19,0.00013698,2]
[405817232,1771335041793,-1147.19,0.00013698,2]
[405817233,1771335041802,-1147.19,0.00013698,2]
[405817234,1771335041812,-1147.19,0.00013698,2]
[405817235,1771335041822,-1147.19,0.00013698,2]
[405817236,1771335041831,-1147.19,0.00013698,2]
[405817237,1771335041841,-500.0,0.00013698,2]
[405817238,1771335041851,-500.0,0.00013698,2]
[405817239,1771335041861,-500.0,0.00013698,2]
[405817240,1771335041871,-500.0,0.00013698,2]
[405817241,1771335041881,-500.0,0.00013698,2]
[405817242,1771335041890,-500.0,0.00013698,2]
[405817243,1771335041900,-500.0,0.00013698,2]
[405817244,1771335041909,-500.0,0.00013698,2]
[405817245,1771335041919,-500.0,0.00013698,2]
[405817246,1771335041928,-500.0,0.00013698,2]
[405817247,1771335041938,-500.0,0.00013698,2]
[405817248,1771335041948,-500.0,0.00013698,2]
[405817249,1771335041957,-500.0,0.00013698,2]
[405817250,1771335041967,-500.0,0.00013698,2]
[405817251,1771335041977,-456.05800986,0.00013698,2]
[405817252,1771335041987,-500.0,0.00013698,2]
[405817253,1771335041996,-500.0,0.00013698,2]
[405817254,1771335042006,-500.0,0.00013698,2]
[405817255,1771335042016,-500.0,0.00013698,2]
[405817256,1771335042026,-500.0,0.00013698,2]
[405817257,1771335042035,-500.0,0.00013698,2]
[405817258,1771335042364,-500.0,0.00013698,2]
[405817259,1771335042374,-500.0,0.00013698,2]
[405817260,1771335042384,-500.0,0.00013698,2]
[405817261,1771335042393,-500.0,0.00013698,2]
[405817262,1771335042403,-500.0,0.00013698,2]
[405817263,1771335042412,-500.0,0.00013698,2]
[405817264,1771335042422,-511.5660924,0.00013698,2]
[405817265,1771335042431,-500.0,0.00013698,2]
[405817266,1771335042441,-500.0,0.00013698,2]
[405817267,1771335042450,-500.0,0.00013698,2]
[405817268,1771335042460,-465.55674509,0.00013698,2]
[405817269,1771335042470,-500.0,0.00013698,2]
[405817270,1771335042480,-529.40507312,0.00013698,2]
[405817271,1771335042489,-500.0,0.00013698,2]
[405817272,1771335042501,-704.93,0.00013699,2]
[405817273,1771335042510,-702.05,0.000137,2]
[405817274,1771335042519,-702.05,0.000137,2]
[405817275,1771335042528,-510.58,0.000137,2]
[405817276,1771335042538,-510.58,0.000137,2]
[405817277,1771335042547,-510.58,0.000137,2]
[405817278,1771335042557,-510.58,0.000137,2]
[405817279,1771335042566,-510.58,0.000137,2]
[405817280,1771335042578,-510.58,0.000137,2]
[405817281,1771335042588,-510.58,0.000137,2]
[405817282,1771335042598,-510.58,0.000137,2]
[405817283,1771335042607,-510.58,0.000137,2]
[405817284,1771335042616,-510.58,0.000137,2]
[405817285,1771335042625,-510.6,0.000137,2]
[405817286,1771335042635,-500.0,0.00013797,2]
[405817287,1771335042643,-11526.71888631,0.00013967,2]
[405817288,1771335042653,-500.0,0.00014,2]
[405817289,1771335042662,-669.72717537,0.00014,2]
[405817290,1771335042672,-500.0,0.00014,2]
[405817291,1771335042681,-704.93,0.00014384,2]
[405817292,1771335042690,-9922.078789,0.00014387,7]
[405817293,1771335042700,-7658.84032483,0.0001439,2]
[405817294,1771335042709,-300.0,0.00014579,2]
[405817295,1771335042718,-151.0,0.00014634,2]
[405817296,1771335042727,-151.0,0.00014634,2]
[405817297,1771335042737,-5736.12832918,0.00014729,2]
[405817298,1771335042746,-1600.0,0.0001474,2]
[405817299,1771335042755,-3535.77699268,0.00014836,2]
[405817300,1771335042765,-250.0,0.00015,2]
[405817301,1771335042774,-2055.50045313,0.00015,2]
[405817302,1771335042783,-8002.23365242,0.00015,2]
[405817303,1771335042792,-151.76907395,0.00015,2]
[405817304,1771335042801,-216.81997101,0.00015,5]
[405817305,1771335042811,-11526.71888631,0.00015004,2]
[405817306,1771335042820,-704.93,0.00015068,2]
[405817307,1771335042830,-1000.0,0.00015073,7]
[405817308,1771335042839,-1517.64,0.000153,2]
[405817309,1771335042849,-250.35514413,0.00015365,2]
[405817310,1771335042859,-200.0,0.00015365,2]
[405817311,1771335042868,-721.12765535,0.00015365,2]
[405817312,1771335042878,-250.0,0.00015365,2]
[405817313,1771335042887,-250.0,0.00015365,2]
[405817314,1771335042897,-250.0,0.00015365,2]
[405817315,1771335042906,-253.03375294,0.00015365,2]
[405817316,1771335042915,-501.4949202,0.00015365,2]
[405817317,1771335042925,-578.20924308,0.00015365,2]
[405817318,1771335042934,-160.0,0.00015365,2]
[405817319,1771335042943,-250.0,0.00015365,2]
[405817320,1771335042952,-3000.0,0.00015365,2]
[405817321,1771335042961,-1428.38747117,0.00015365,2]
[405817322,1771335042971,-250.0,0.00015365,2]
[405817323,1771335042980,-3000.0,0.00015365,2]
[405817324,1771335042989,-250.0,0.00015365,2]
[405817325,1771335042998,-3000.0,0.00015365,2]
[405817326,1771335043007,-250.0,0.00015365,2]
[405817327,1771335043016,-3000.0,0.00015365,2]
[405817328,1771335043026,-250.0,0.00015365,2]
[405817329,1771335043035,-1070.81608438,0.00015365,2]
[405817330,1771335043044,-250.0,0.00015365,2]
[405817331,1771335043053,-3000.0,0.00015365,2]
[405817332,1771335043063,-250.0,0.00015365,2]
[405817333,1771335043073,-250.0,0.00015365,2]
[405817334,1771335043083,-3000.0,0.00015365,2]
[405817335,1771335043092,-250.0,0.00015365,2]
[405817336,1771335043101,-250.0,0.00015365,2]
[405817337,1771335043112,-3000.0,0.00015365,2]
[405817338,1771335043122,-302.70619241,0.00015365,2]
[405817339,1771335043131,-250.0,0.00015365,2]
[405817340,1771335043141,-299.40346672,0.00015365,2]
[405817341,1771335043150,-3000.0,0.00015365,2]
[405817342,1771335043161,-3000.0,0.00015365,2]
[405817343,1771335043173,-3099.28707761,0.00015365,2]
[405817344,1771335043183,-162.380719,0.00015365,2]
[405817345,1771335043192,-250.0,0.00015365,2]
[405817346,1771335043202,-250.0,0.00015365,2]
[405817347,1771335043212,-250.0,0.00015365,2]
[405817348,1771335043221,-250.0,0.00015365,2]
[405817349,1771335043230,-250.0,0.00015365,2]
[405817350,1771335043239,-250.0,0.00015365,2]
[405817351,1771335043248,-250.0,0.00015365,2]
[405817352,1771335043257,-250.0,0.00015365,2]
[405817353,1771335043266,-250.0,0.00015365,2]
[405817354,1771335043276,-250.0,0.00015365,2]
[405817355,1771335043285,-250.0,0.00015365,2]
[405817356,1771335043294,-509.61038486,0.000154,2]
[405817357,1771335043304,-200.0,0.00015401,2]
[405817358,1771335043313,-484.11558281,0.00015649,2]
[405817359,1771335043323,-704.93,0.00015753,2]
[405817360,1771335043333,-2245.73805852,0.00015807,2]
[405817361,1771335043343,-173.57638878,0.00015844,2]
[405817362,1771335043352,-38674.68,0.00015889,2]
[405817363,1771335043363,-200.0,0.00015913,2]
[405817364,1771335043372,-527.32864652,0.00015913,2]
[405817365,1771335043383,-5000.0,0.0001596,2]
[405817366,1771335043392,-3535.77699268,0.00015991,2]
[405817367,1771335043401,-418.83903334,0.00016,2]
[405817368,1771335043411,-152.85835457,0.00016,2]
[405817369,1771335043420,-3240.0,0.0001601,2]
[405817370,1771335043429,-484.11558281,0.0001604,2]
[405817371,1771335043439,-11526.71888631,0.00016041,2]
[405817372,1771335043448,-3730.402862,0.00016055,7]
[405817373,1771335043457,-461.449199,0.00016141,7]
[405817374,1771335043467,-409684.44410197,0.000162,5]
[405817375,1771335043477,-5736.12832918,0.00016314,2]
[405817376,1771335043486,-200.0,0.0001634,2]
[405817377,1771335043498,-2045.7,0.00016438,2]
[405817378,1771335043509,-704.93,0.00016438,2]
[405817379,1771335043518,-1000.0,0.00016524,2]
[405817380,1771335043527,-160.0,0.00016559,2]
[405817381,1771335043537,-1600.0,0.00016582,2]
[405817382,1771335043547,-173.0767049,0.00016628,2]
[405817383,1771335043556,-159.43,0.00016712,2]
[405817384,1771335043566,-160.32510575,0.00016734,2]
[405817385,1771335043575,-168.3888056,0.00016734,2]
[405817386,1771335043584,-998.6278394,0.0001699,2]
[405817387,1771335043593,-300.0,0.00017,2]
[405817388,1771335043602,-722480.46228801,0.00017,2]
[405817389,1771335043611,-3535.77699268,0.00017146,2]
[405817390,1771335043621,-150.0,0.00017246,2]
[405817391,1771335043630,-500.0,0.00017246,2]
[405817392,1771335043640,-500.0,0.00017246,2]
[405817393,1771335043649,-150.0,0.00017246,2]
[405817394,1771335043659,-150.0,0.00017246,2]
[405817395,1771335043668,-150.0,0.00017246,2]
[405817396,1771335043677,-150.0,0.00017246,2]
[405817397,1771335043687,-500.0,0.00017246,2]
[405817398,1771335043695,-154.86539372,0.00017246,2]
[405817399,1771335043705,-500.0,0.00017246,2]
[405817400,1771335043714,-500.0,0.00017246,2]
[405817401,1771335043723,-150.0,0.00017246,2]
[405817402,1771335043733,-500.0,0.00017246,2]
[405817403,1771335043743,-151.02878078,0.00017246,2]
[405817404,1771335043752,-150.37957529,0.00017301,2]
[405817405,1771335043761,-500.0,0.00017301,2]